{"text_format":"1","workbook":"xlsx","n_sheets":1,"sheets":["Jahr 1"],"not_rendered":{"charts":0,"images":0,"macros":1,"external_links":0,"defined_names":2,"comments":0,"pivot_tables":0},"unopened":[],"bounds":{"document_bytes":16777216,"sheet_cells":100000,"rows_first":2000,"rows_last":500,"rows_between":2000,"halvings":0,"cell_chars":16384,"cell_head_chars":4096},"cells_cut":0,"cells_raw":0,"read":"whole","date_system":"1900"}

{"sheet":"Jahr 1","index":0,"n_rows":37,"n_cols":6,"rows_kept":37,"cut":false,"hidden":false,"merged":[]}
[]
[]
[]
["Ein anonymer Jahresausgleich kann hier durchgeführt werden. Die effektive Steuer ist dann in die Endsumme H11 einzusetzen!"]
["Jahresausgleich"]
["Jahreslohnzettel L16",2025,{"$f":"B6","v":2025},{"$f":"B6","v":2025},"Summe","brutto"]
["Grenzsteuersatz (%)"]
["KZ 210",18077.099999999999,47670,47670,{"$f":"SUM(B8:D8)","v":113417.1}]
["Minus SV gesamt",-2732.51,-8573.42,-8573.42,{"$f":"SUM(B9:D9)","v":-19879.349999999999}]
["Minus Lohnsteuer",-95.49,-4808.6499999999996,-4808.6499999999996,-9712.7899999999991]
["minus Nachforderung Lohnsteuer / Einkommenssteuer",null,null,null,0]
["Minus Familienbonus Plus (1)",0,0,0,0]
["Minus Arbeitsplatzfahrtkosten (3)",0,0,0,0]
["minus Steuerersparnis nicht anerkannte Abzüge (2)",null,null,null,0]
["            aus Gewerkschaftsbeiträgen (2)",null,null,null,0,0]
["           sonstiges ",null,null,null,0,0]
["           sonstiges ",null,null,null,0,0]
["           sonstiges ",null,null,null,0,0]
["           sonstiges",null,null,null,0,0]
["Minus anerkannte Abzüge (netto)",null,null,null,0]
["            Minus gesundheitsbedingte Ausgaben (netto) (4)",null,null,null,0,0]
["            sonstiges",null,null,null,0,0]
["plus 50% Diäten (§ 26 Z. 4 EStG 1988) - hinzuzurechnen (5)",null,null,null,0,0]
["plus / minus sonstige Korrekturposten",null,null,null,0]
[]
["jährliche UBGR ",{"$f":"SUM(B8:B24)","v":15249.099999999999},{"$f":"SUM(C8:C24)","v":34287.93},{"$f":"SUM(D8:D24)","v":34287.93},{"$f":"SUM(E8:E24)","v":83824.960000000006}]
["monatliche UBGR",{"$f":"B26/12","v":1270.7583333333332},{"$f":"C26/12","v":2857.3274999999999},{"$f":"D26/12","v":2857.3274999999999},{"$f":"E26/12","v":6985.4133333333339}]
[]
["überschreibbar"]
[]
["(1) OGH 11.12.2019,  4 Ob 150/19s; Tews, EF-Z 2010/12 Missverständnis bei Familienbeihilfenanrechnung"]
["(2) OGH OGH 23.11.2016, 1 Ob 206/16z; Tews, EF-Z 2016, 088 - Steuerlich abziehbare Ausgaben "]
["(3) ständige Judikatur; zum Selbstbehalt siehe"]
["      Tews EF-Z 2015/160, Der unausrottbare Fahrtkostenselbstbehalt"]
["      siehe auch Pendlerrechner"]
["(4) nicht immer vollständig aus L16 ersichtlich "]
["(5) detaillierte Aufstellung erforderlich"]